[Event "The Kvibergspelen 2024"]
[Site "Kviberg Park Hotel & Conference, Krutvagen 2, Gothenburg, Sweden"]
[Date "2024.09.06"]
[Round "4.1"]
[White "Kucuksari, Kaan"]
[Black "Nord, Alexander"]
[Result "1-0"]
[TimeControl "15 minutes + 5 seconds per move from move one (Round 1 - 4) / 90 minutes + 30 seconds per move from move one (Round 5 - 8)"]
[WhiteTitle "IM"]
[BlackTitle "CM"]
[WhiteFideId "6380166"]
[BlackFideId "1738135"]
[WhiteElo "2455"]
[BlackElo "2209"]

1. d4 {[%clk 00:15:09]} d5 {[%clk 00:15:09]} {[%emt 00:00:03]} 2. Nf3 {[%clk
00:15:12]} {[%emt 00:00:01]} Nf6 {[%clk 00:15:13]} {[%emt 00:00:01]} 3. Bf4
{[%clk 00:15:15]} e6 {[%clk 00:15:06]} {[%emt 00:00:12]} 4. e3 {[%clk
00:15:19]} {[%emt 00:00:02]} c5 {[%clk 00:15:07]} {[%emt 00:00:04]} 5. Nbd2
{[%clk 00:15:22]} {[%emt 00:00:02]} Nc6 {[%clk 00:15:07]} {[%emt 00:00:04]} 6.
c3 {[%clk 00:15:23]} {[%emt 00:00:05]} cxd4 {[%clk 00:15:05]} {[%emt 00:00:06]}
7. exd4 {[%emt 00:00:05]} Nh5 {[%clk 00:15:06]} {[%emt 00:00:01]} 8. Be3 {[%clk
00:15:29]} {[%emt 00:00:03]} Bd6 {[%clk 00:15:07]} {[%emt 00:00:04]} 9. Ne5
{[%clk 00:15:28]} {[%emt 00:00:05]} Nf6 {[%clk 00:14:51]} {[%emt 00:00:21]} 10.
f4 {[%clk 00:15:29]} {[%emt 00:00:05]} Qb6 {[%clk 00:14:51]} {[%emt 00:00:04]}
11. Qb3 {[%clk 00:15:19]} {[%emt 00:00:16]} Ng8 {[%clk 00:14:53]} {[%emt
00:00:02]} 12. Qxb6 {[%clk 00:15:12]} {[%emt 00:00:12]} axb6 {[%clk 00:14:57]}
{[%emt 00:00:02]} 13. Bb5 {[%clk 00:15:16]} {[%emt 00:00:01]} Nge7 {[%clk
00:14:24]} {[%emt 00:00:38]} 14. Ndf3 {[%clk 00:15:17]} {[%emt 00:00:03]} f6
{[%clk 00:13:59]} {[%emt 00:00:30]} 15. Ng4 {[%clk 00:15:19]} {[%emt 00:00:02]}
Bd7 {[%clk 00:12:52]} {[%emt 00:01:14]} 16. O-O {[%clk 00:15:14]} {[%emt
00:00:09]} Na5 {[%clk 00:10:55]} {[%emt 00:02:02]} 17. Bd3 {[%clk 00:14:48]}
{[%emt 00:00:29]} O-O {[%clk 00:10:41]} {[%emt 00:00:20]} 18. Rfe1 {[%clk
00:14:38]} {[%emt 00:00:15]} b5 {[%clk 00:09:35]} {[%emt 00:01:11]} 19. Nf2
{[%clk 00:14:22]} {[%emt 00:00:22]} Rfc8 {[%clk 00:09:11]} {[%emt 00:00:29]} 20.
a3 {[%clk 00:14:21]} {[%emt 00:00:06]} Nc4 {[%clk 00:09:06]} {[%emt 00:00:10]}
21. Bc1 {[%clk 00:14:21]} {[%emt 00:00:05]} h6 {[%clk 00:08:22]} {[%emt
00:00:49]} 22. Rb1 {[%clk 00:14:17]} {[%emt 00:00:09]} g5 {[%clk 00:08:01]}
{[%emt 00:00:26]} 23. g3 {[%clk 00:13:23]} {[%emt 00:00:59]} Kf7 {[%clk
00:07:45]} {[%emt 00:00:21]} 24. Ng4 {[%clk 00:13:14]} {[%emt 00:00:13]} gxf4
{[%clk 00:06:23]} {[%emt 00:01:27]} 25. Nxh6+ {[%clk 00:13:12]} {[%emt
00:00:08]} Kg7 {[%clk 00:06:26]} {[%emt 00:00:02]} 26. Ng4 {[%clk 00:13:16]}
{[%emt 00:00:01]} fxg3 {[%clk 00:06:28]} {[%emt 00:00:03]} 27. hxg3 {[%clk
00:13:18]} {[%emt 00:00:02]} Bxg3 {[%clk 00:06:19]} {[%emt 00:00:14]} 28. Re2
{[%clk 00:13:22]} {[%emt 00:00:02]} e5 {[%clk 00:00:17]} {[%emt 00:06:07]} 29.
Rg2 {[%clk 00:13:24]} {[%emt 00:00:02]} Bxg4 {[%clk 00:00:18]} {[%emt
00:00:05]} 30. Rxg3 {[%clk 00:13:28]} {[%emt 00:00:01]} f5 {[%clk 00:00:10]}
{[%emt 00:00:13]} 31. Bxc4 {[%clk 00:12:10]} {[%emt 00:01:23]} bxc4 {[%clk
00:00:08]} {[%emt 00:00:07]} 32. Nxe5 {[%clk 00:12:13]} {[%emt 00:00:02]} Kf6
{[%clk 00:00:07]} {[%emt 00:00:06]} 33. Nd7+ {[%clk 00:11:45]} {[%emt
00:00:33]} Kf7 {[%clk 00:00:11]} 34. Nb6 {[%clk 00:11:49]} {[%emt 00:00:02]}
Rg8 {[%clk 00:00:07]} {[%emt 00:00:08]} 35. Nxa8 {[%clk 00:11:51]} {[%emt
00:00:03]} Rxa8 {[%clk 00:00:11]} {[%emt 00:00:01]} 36. Bd2 {[%clk 00:11:42]}
{[%emt 00:00:13]} b5 {[%clk 00:00:11]} {[%emt 00:00:06]} 37. Re1 {[%clk
00:11:45]} {[%emt 00:00:02]} Nc8 {[%clk 00:00:12]} {[%emt 00:00:04]} 38. Re5
{[%clk 00:11:45]} {[%emt 00:00:04]} Nb6 {[%clk 00:00:15]} {[%emt 00:00:02]} 39.
Rge3 {[%clk 00:11:47]} {[%emt 00:00:03]} Ra7 {[%clk 00:00:10]} {[%emt
00:00:11]} 40. Re1 {[%clk 00:11:50]} {[%emt 00:00:02]} Rd7 {[%clk 00:00:13]}
{[%emt 00:00:02]} 41. Bg5 {[%clk 00:11:51]} {[%emt 00:00:04]} Kg6 {[%clk
00:00:09]} {[%emt 00:00:08]} 42. Bc1 {[%clk 00:11:29]} {[%emt 00:00:27]} Kf7
{[%clk 00:00:13]} {[%emt 00:00:02]} 43. Re6 {[%clk 00:11:26]} {[%emt 00:00:07]}
Na4 {[%clk 00:00:17]} {[%emt 00:00:02]} 44. Kf2 {[%clk 00:11:28]} {[%emt
00:00:03]} f4 {[%clk 00:00:13]} {[%emt 00:00:09]} 45. R6e5 {[%clk 00:11:31]}
{[%emt 00:00:02]} Kf6 {[%clk 00:00:12]} {[%emt 00:00:05]} 46. Rg1 {[%clk
00:11:25]} {[%emt 00:00:11]} Bf5 {[%clk 00:00:13]} {[%emt 00:00:04]} 47. Rh1
{[%clk 00:11:20]} {[%emt 00:00:10]} Be4 {[%clk 00:00:14]} {[%emt 00:00:04]} 48.
Rh4 {[%clk 00:10:22]} {[%emt 00:01:03]} f3 {[%clk 00:00:09]} {[%emt 00:00:10]}
49. Rf4+ {[%clk 00:10:15]} {[%emt 00:00:12]} Kg6 {[%clk 00:00:12]} {[%emt
00:00:02]} 50. Rf8 {[%clk 00:10:16]} {[%emt 00:00:04]} Rh7 {[%clk 00:00:13]}
{[%emt 00:00:04]} 51. Rg5+ {[%clk 00:10:18]} {[%emt 00:00:04]} Kh6 {[%clk
00:00:14]} {[%emt 00:00:04]} 52. Rf6+ {[%clk 00:10:21]} {[%emt 00:00:02]} 1-0

[Event "The Kvibergspelen 2024"]
[Site "Kviberg Park Hotel & Conference, Krutvagen 2, Gothenburg, Sweden"]
[Date "2024.09.06"]
[Round "4.2"]
[White "Mashhadi, Peyman"]
[Black "Sorensen, Hampus"]
[Result "0-1"]
[TimeControl "15 minutes + 5 seconds per move from move one (Round 1 - 4) / 90 minutes + 30 seconds per move from move one (Round 5 - 8)"]
[BlackTitle "IM"]
[WhiteFideId "1768581"]
[BlackFideId "8703884"]
[WhiteElo "2148"]
[BlackElo "2420"]

1. Nf3 {[%clk 00:15:06]} {[%emt 00:00:03]} Nf6 {[%clk 00:14:57]} {[%emt
00:00:15]} 2. d4 {[%clk 00:15:08]} {[%emt 00:00:03]} d5 {[%clk 00:14:57]}
{[%emt 00:00:04]} 3. c4 {[%clk 00:15:09]} {[%emt 00:00:05]} e6 {[%clk
00:14:59]} {[%emt 00:00:03]} 4. g3 {[%clk 00:15:12]} {[%emt 00:00:02]} Bb4+
{[%clk 00:14:54]} {[%emt 00:00:10]} 5. Bd2 {[%clk 00:15:07]} {[%emt 00:00:09]}
Be7 {[%clk 00:14:55]} {[%emt 00:00:04]} 6. Qc2 {[%clk 00:14:33]} {[%emt
00:00:39]} c6 {[%clk 00:14:52]} {[%emt 00:00:09]} 7. Bg2 {[%clk 00:14:31]}
{[%emt 00:00:07]} Nbd7 {[%clk 00:14:51]} {[%emt 00:00:05]} 8. O-O {[%clk
00:14:04]} {[%emt 00:00:32]} Ne4 {[%clk 00:14:52]} {[%emt 00:00:05]} 9. Bf4
{[%clk 00:13:50]} {[%emt 00:00:18]} g5 {[%clk 00:14:49]} {[%emt 00:00:09]} 10.
Be3 {[%clk 00:12:57]} {[%emt 00:00:57]} Nd6 {[%clk 00:14:51]} {[%emt 00:00:04]}
11. cxd5 {[%clk 00:12:26]} {[%emt 00:00:36]} exd5 {[%clk 00:14:43]} {[%emt
00:00:13]} 12. Nc3 {[%clk 00:11:38]} {[%emt 00:00:53]} Nb6 {[%clk 00:14:01]}
{[%emt 00:00:47]} 13. b3 {[%clk 00:10:53]} {[%emt 00:00:51]} Bf5 {[%clk
00:13:29]} {[%emt 00:00:35]} 14. Qc1 {[%clk 00:10:17]} {[%emt 00:00:42]} f6
{[%clk 00:13:17]} {[%emt 00:00:17]} 15. a4 {[%clk 00:09:43]} {[%emt 00:00:39]}
a5 {[%clk 00:12:59]} {[%emt 00:00:22]} 16. Re1 {[%clk 00:08:54]} {[%emt
00:00:54]} O-O {[%clk 00:12:55]} {[%emt 00:00:09]} 17. Nd2 {[%clk 00:08:22]}
{[%emt 00:00:37]} Bg6 {[%clk 00:12:00]} {[%emt 00:01:00]} 18. f3 {[%clk
00:08:06]} {[%emt 00:00:21]} f5 {[%clk 00:11:30]} {[%emt 00:00:37]} 19. Bf2
{[%clk 00:07:54]} {[%emt 00:00:16]} f4 {[%clk 00:11:28]} {[%emt 00:00:07]} 20.
g4 {[%clk 00:06:37]} {[%emt 00:01:21]} Bf6 {[%clk 00:11:05]} {[%emt 00:00:28]}
21. e4 {[%clk 00:06:08]} {[%emt 00:00:34]} fxe3 {[%clk 00:11:09]} {[%emt
00:00:02]} 22. Bxe3 {[%clk 00:06:12]} {[%emt 00:00:01]} Nd7 {[%clk 00:11:09]}
{[%emt 00:00:05]} 23. Qa3 {[%clk 00:05:27]} {[%emt 00:00:50]} Nb8 {[%clk
00:10:15]} {[%emt 00:00:59]} 24. Nf1 {[%clk 00:04:24]} {[%emt 00:01:08]} Na6
{[%clk 00:10:08]} {[%emt 00:00:12]} 25. Na2 {[%clk 00:04:14]} {[%emt 00:00:14]}
Ne8 {[%clk 00:09:04]} {[%emt 00:01:10]} 26. Bf2 {[%clk 00:03:56]} {[%emt
00:00:23]} Qb6 {[%clk 00:08:51]} {[%emt 00:00:18]} 27. Qb2 {[%clk 00:03:06]}
{[%emt 00:00:55]} Ng7 {[%clk 00:08:35]} {[%emt 00:00:21]} 28. Rad1 {[%clk
00:02:55]} {[%emt 00:00:16]} Rae8 {[%clk 00:08:25]} {[%emt 00:00:15]} 29. Ng3
{[%clk 00:02:43]} {[%emt 00:00:17]} Ne6 {[%clk 00:07:21]} {[%emt 00:01:08]} 30.
Ne2 {[%clk 00:02:27]} {[%emt 00:00:22]} Nb4 {[%clk 00:07:15]} {[%emt 00:00:12]}
31. Nxb4 {[%clk 00:02:26]} {[%emt 00:00:06]} Qxb4 {[%clk 00:07:18]} {[%emt
00:00:02]} 32. Qa2 {[%clk 00:01:24]} {[%emt 00:01:06]} Re7 {[%clk 00:06:55]}
{[%emt 00:00:28]} 33. Rd2 {[%clk 00:01:04]} {[%emt 00:00:25]} Rfe8 {[%clk
00:06:51]} {[%emt 00:00:09]} 34. Red1 {[%clk 00:01:01]} {[%emt 00:00:09]} Nc7
{[%clk 00:04:26]} {[%emt 00:02:29]} 35. Bf1 {[%clk 00:00:55]} {[%emt 00:00:11]}
Qd6 {[%clk 00:03:54]} {[%emt 00:00:37]} 36. Bg3 {[%clk 00:00:45]} {[%emt
00:00:15]} Qd8 {[%clk 00:03:58]} 37. Bf2 {[%clk 00:00:39]} {[%emt 00:00:14]}
Na6 {[%clk 00:03:59]} {[%emt 00:00:02]} 38. Nc1 {[%clk 00:00:30]} {[%emt
00:00:14]} Nb4 {[%clk 00:04:02]} {[%emt 00:00:02]} 39. Qb2 {[%clk 00:00:20]}
{[%emt 00:00:16]} h5 {[%clk 00:03:07]} {[%emt 00:00:59]} 40. h3 {[%clk
00:00:21]} {[%emt 00:00:03]} hxg4 {[%clk 00:03:07]} {[%emt 00:00:06]} 41. hxg4
{[%clk 00:00:25]} {[%emt 00:00:01]} Rh7 {[%clk 00:02:34]} {[%emt 00:00:38]} 42.
Bg3 {[%clk 00:00:10]} {[%emt 00:00:20]} c5 {[%clk 00:01:54]} {[%emt 00:00:44]}
43. Be5 {[%clk 00:00:08]} {[%emt 00:00:08]} Bxe5 {[%clk 00:01:46]} {[%emt
00:00:13]} 44. dxe5 {[%clk 00:00:12]} {[%emt 00:00:01]} d4 {[%clk 00:01:38]}
{[%emt 00:00:13]} 45. Bc4+ {[%clk 00:00:16]} {[%emt 00:00:02]} Kg7 {[%clk
00:01:37]} {[%emt 00:00:06]} 46. Nd3 {[%clk 00:00:20]} {[%emt 00:00:01]} Nxd3
{[%clk 00:01:13]} {[%emt 00:00:28]} 47. Bxd3 {[%clk 00:00:24]} {[%emt
00:00:02]} Bxd3 {[%clk 00:01:17]} {[%emt 00:00:01]} 48. Rxd3 {[%clk 00:00:28]}
{[%emt 00:00:02]} Rxe5 {[%clk 00:01:18]} {[%emt 00:00:03]} 49. Qf2 {[%clk
00:00:12]} {[%emt 00:00:20]} Qe7 {[%clk 00:01:08]} {[%emt 00:00:16]} 50. R3d2
{[%clk 00:00:10]} {[%emt 00:00:07]} Re3 {[%clk 00:01:04]} {[%emt 00:00:09]} 51.
Qg3 {[%clk 00:00:07]} {[%emt 00:00:07]} Rxb3 {[%clk 00:00:40]} {[%emt
00:00:29]} 52. Re1 {[%clk 00:00:06]} {[%emt 00:00:06]} Re3 {[%clk 00:00:41]}
{[%emt 00:00:04]} 53. Rde2 {[%clk 00:00:11]} Rxe2 {[%clk 00:00:34]} {[%emt
00:00:12]} 54. Rxe2 {[%clk 00:00:15]} {[%emt 00:00:01]} Qxe2 {[%clk 00:00:37]}
{[%emt 00:00:02]} 55. Qc7+ {[%clk 00:00:19]} {[%emt 00:00:01]} Kg6 {[%clk
00:00:19]} {[%emt 00:00:23]} 56. Qd6+ {[%clk 00:00:23]} {[%emt 00:00:01]} Kf7
{[%clk 00:00:23]} {[%emt 00:00:01]} 57. Qd7+ {[%clk 00:00:22]} {[%emt
00:00:04]} Qe7 {[%clk 00:00:27]} {[%emt 00:00:02]} 58. Qf5+ {[%clk 00:00:26]}
{[%emt 00:00:01]} Kg7 {[%clk 00:00:31]} {[%emt 00:00:01]} 0-1

[Event "The Kvibergspelen 2024"]
[Site "Kviberg Park Hotel & Conference, Krutvagen 2, Gothenburg, Sweden"]
[Date "2024.09.06"]
[Round "4.3"]
[White "Arman, Deniz"]
[Black "Muntean, Victor"]
[Result "1-0"]
[TimeControl "15 minutes + 5 seconds per move from move one (Round 1 - 4) / 90 minutes + 30 seconds per move from move one (Round 5 - 8)"]
[WhiteTitle "FM"]
[WhiteFideId "6302106"]
[BlackFideId "1054414"]
[WhiteElo "2348"]
[BlackElo "2158"]

1. e4 {[%clk 00:15:08]} {[%emt 00:00:01]} e5 {[%clk 00:15:09]} {[%emt
00:00:02]} 2. Nf3 {[%clk 00:15:11]} {[%emt 00:00:02]} Nc6 {[%clk 00:15:13]}
{[%emt 00:00:01]} 3. Bb5 {[%clk 00:15:15]} {[%emt 00:00:01]} a6 {[%clk
00:15:17]} {[%emt 00:00:01]} 4. Bxc6 {[%clk 00:15:18]} {[%emt 00:00:01]} dxc6
{[%clk 00:15:21]} {[%emt 00:00:01]} 5. O-O {[%clk 00:15:21]} {[%emt 00:00:03]}
Qf6 {[%clk 00:15:25]} {[%emt 00:00:02]} 6. d4 {[%clk 00:15:24]} exd4 {[%clk
00:15:29]} {[%emt 00:00:02]} 7. Bg5 {[%clk 00:15:28]} {[%emt 00:00:01]} Qd6
{[%clk 00:15:32]} {[%emt 00:00:01]} 8. Nxd4 {[%clk 00:15:31]} {[%emt 00:00:03]}
Be7 {[%clk 00:15:36]} {[%emt 00:00:01]} 9. Be3 {[%clk 00:15:35]} Nh6 {[%clk
00:15:40]} 10. f3 {[%clk 00:15:20]} {[%emt 00:00:20]} g5 {[%clk 00:14:59]}
{[%emt 00:00:45]} 11. Qe2 {[%clk 00:12:53]} {[%emt 00:02:32]} c5 {[%clk
00:12:10]} {[%emt 00:02:55]} 12. Nb3 {[%clk 00:12:50]} {[%emt 00:00:08]} b6
{[%clk 00:12:13]} {[%emt 00:00:02]} 13. Nc3 {[%clk 00:12:42]} {[%emt 00:00:12]}
Bb7 {[%clk 00:11:51]} {[%emt 00:00:27]} 14. Rad1 {[%clk 00:12:45]} {[%emt
00:00:03]} Qe6 {[%clk 00:11:38]} {[%emt 00:00:17]} 15. f4 {[%clk 00:08:31]}
{[%emt 00:04:19]} Bxe4 {[%clk 00:10:41]} {[%emt 00:01:03]} 16. fxg5 {[%clk
00:08:18]} {[%emt 00:00:18]} Nf5 {[%clk 00:07:08]} {[%emt 00:03:38]} 17. Bxc5
{[%clk 00:07:57]} {[%emt 00:00:26]} bxc5 {[%clk 00:05:44]} {[%emt 00:01:29]} 18.
Nxe4 {[%clk 00:07:49]} {[%emt 00:00:13]} c4 {[%clk 00:05:44]} {[%emt 00:00:05]}
19. Nd4 {[%clk 00:07:24]} {[%emt 00:00:28]} Nxd4 {[%clk 00:05:38]} {[%emt
00:00:13]} 20. Rxd4 {[%clk 00:07:18]} {[%emt 00:00:10]} Bc5 {[%clk 00:05:34]}
{[%emt 00:00:09]} 21. Qf2 {[%clk 00:06:19]} {[%emt 00:01:04]} Bxd4 {[%clk
00:05:06]} {[%emt 00:00:34]} 22. Qxd4 {[%clk 00:06:22]} {[%emt 00:00:02]} Qb6
{[%clk 00:04:52]} {[%emt 00:00:19]} 23. Nf6+ {[%clk 00:06:20]} {[%emt
00:00:07]} Ke7 {[%clk 00:04:44]} {[%emt 00:00:13]} 24. Nd5+ {[%clk 00:06:23]}
{[%emt 00:00:01]} 1-0

[Event "The Kvibergspelen 2024"]
[Site "Kviberg Park Hotel & Conference, Krutvagen 2, Gothenburg, Sweden"]
[Date "2024.09.06"]
[Round "4.4"]
[White "Grahn, Vidar"]
[Black "Kingsley, Elias"]
[Result "1-0"]
[TimeControl "15 minutes + 5 seconds per move from move one (Round 1 - 4) / 90 minutes + 30 seconds per move from move one (Round 5 - 8)"]
[WhiteTitle "FM"]
[WhiteFideId "1744780"]
[BlackFideId "1775006"]
[WhiteElo "2219"]
[BlackElo "2047"]

1. d4 {[%clk 00:15:08]} {[%emt 00:00:03]} Nf6 {[%clk 00:15:08]} {[%emt
00:00:02]} 2. c4 {[%clk 00:15:11]} {[%emt 00:00:01]} e6 {[%clk 00:15:11]}
{[%emt 00:00:03]} 3. Nf3 {[%clk 00:15:05]} {[%emt 00:00:11]} d5 {[%clk
00:15:03]} {[%emt 00:00:13]} 4. g3 {[%clk 00:15:04]} {[%emt 00:00:06]} Be7
{[%clk 00:14:20]} {[%emt 00:00:48]} 5. Bg2 {[%clk 00:15:07]} {[%emt 00:00:02]}
O-O {[%clk 00:14:18]} {[%emt 00:00:06]} 6. O-O {[%clk 00:15:09]} {[%emt
00:00:03]} b6 {[%clk 00:14:02]} {[%emt 00:00:21]} 7. cxd5 {[%clk 00:15:08]}
{[%emt 00:00:06]} exd5 {[%clk 00:14:02]} {[%emt 00:00:06]} 8. Nc3 {[%clk
00:15:11]} Bb7 {[%clk 00:13:56]} {[%emt 00:00:11]} 9. Ne5 {[%clk 00:15:14]}
{[%emt 00:00:02]} Nbd7 {[%clk 00:12:56]} {[%emt 00:01:06]} 10. Qa4 {[%clk
00:15:17]} {[%emt 00:00:02]} Nxe5 {[%clk 00:09:27]} {[%emt 00:03:34]} 11. dxe5
{[%clk 00:15:19]} {[%emt 00:00:03]} Ne8 {[%clk 00:08:59]} {[%emt 00:00:33]} 12.
Rd1 {[%clk 00:14:49]} {[%emt 00:00:35]} c6 {[%clk 00:08:43]} {[%emt 00:00:23]}
13. e4 {[%clk 00:14:46]} {[%emt 00:00:06]} b5 {[%clk 00:07:42]} {[%emt
00:01:06]} 14. Qb3 {[%clk 00:14:31]} {[%emt 00:00:20]} d4 {[%clk 00:06:45]}
{[%emt 00:01:03]} 15. a4 {[%clk 00:13:34]} {[%emt 00:01:01]} b4 {[%clk
00:05:27]} {[%emt 00:01:23]} 16. Ne2 {[%clk 00:12:40]} {[%emt 00:00:59]} c5
{[%clk 00:05:29]} {[%emt 00:00:04]} 17. e6 {[%clk 00:12:21]} {[%emt 00:00:23]}
fxe6 {[%clk 00:03:41]} {[%emt 00:01:53]} 18. Qxe6+ {[%clk 00:12:17]} {[%emt
00:00:09]} Kh8 {[%clk 00:03:45]} {[%emt 00:00:02]} 19. Nf4 {[%clk 00:12:08]}
{[%emt 00:00:12]} Nc7 {[%clk 00:02:20]} {[%emt 00:01:31]} 20. Qg4 {[%clk
00:12:05]} {[%emt 00:00:08]} Qc8 {[%clk 00:01:43]} {[%emt 00:00:43]} 21. Qh5
{[%clk 00:11:52]} {[%emt 00:00:15]} Qe8 {[%clk 00:01:46]} {[%emt 00:00:04]} 22.
Qe5 {[%clk 00:11:28]} {[%emt 00:00:26]} Qd8 {[%clk 00:01:02]} {[%emt 00:00:53]}
23. Nh5 {[%clk 00:11:18]} {[%emt 00:00:12]} Rf7 {[%clk 00:01:02]} {[%emt
00:00:08]} 24. Bf4 {[%clk 00:10:33]} {[%emt 00:00:49]} Rc8 {[%clk 00:00:49]}
{[%emt 00:00:18]} 25. Bh3 {[%clk 00:10:27]} {[%emt 00:00:11]} Bf6 {[%clk
00:00:47]} {[%emt 00:00:07]} 26. Nxf6 {[%clk 00:10:28]} {[%emt 00:00:05]} gxf6
{[%clk 00:00:50]} {[%emt 00:00:02]} 27. Qh5 {[%clk 00:10:25]} {[%emt 00:00:06]}
Re7 {[%clk 00:00:42]} {[%emt 00:00:15]} 28. Bxc8 {[%clk 00:10:23]} {[%emt
00:00:06]} Qxc8 {[%clk 00:00:46]} {[%emt 00:00:01]} 29. Qxc5 {[%clk 00:10:17]}
{[%emt 00:00:11]} 1-0

[Event "The Kvibergspelen 2024"]
[Site "Kviberg Park Hotel & Conference, Krutvagen 2, Gothenburg, Sweden"]
[Date "2024.09.06"]
[Round "4.5"]
[White "Schriever-Abeln, Marius"]
[Black "Lindberg, Bengt"]
[Result "0-1"]
[TimeControl "15 minutes + 5 seconds per move from move one (Round 1 - 4) / 90 minutes + 30 seconds per move from move one (Round 5 - 8)"]
[BlackTitle "IM"]
[WhiteFideId "1752650"]
[BlackFideId "1700359"]
[WhiteElo "2069"]
[BlackElo "2337"]

1. d4 {[%clk 00:15:08]} {[%emt 00:00:03]} Nf6 {[%clk 00:15:08]} {[%emt
00:00:01]} 2. c4 {[%clk 00:15:12]} {[%emt 00:00:01]} e6 {[%clk 00:15:11]}
{[%emt 00:00:02]} 3. Nf3 {[%clk 00:15:16]} {[%emt 00:00:01]} b6 {[%clk
00:15:15]} {[%emt 00:00:02]} 4. g3 {[%clk 00:15:18]} {[%emt 00:00:03]} Ba6
{[%clk 00:15:18]} {[%emt 00:00:01]} 5. Qc2 {[%clk 00:15:18]} {[%emt 00:00:05]}
Bb7 {[%clk 00:15:22]} 6. Bg2 {[%clk 00:15:20]} {[%emt 00:00:04]} c6 {[%clk
00:15:24]} {[%emt 00:00:02]} 7. e4 {[%clk 00:14:27]} {[%emt 00:00:58]} d5
{[%clk 00:15:26]} {[%emt 00:00:03]} 8. cxd5 {[%clk 00:14:18]} {[%emt 00:00:16]}
cxd5 {[%clk 00:15:29]} {[%emt 00:00:01]} 9. e5 {[%clk 00:14:15]} {[%emt
00:00:07]} Ne4 {[%clk 00:14:35]} {[%emt 00:00:59]} 10. O-O {[%clk 00:13:44]}
{[%emt 00:00:36]} Nc6 {[%clk 00:14:35]} {[%emt 00:00:04]} 11. a3 {[%clk
00:13:02]} {[%emt 00:00:48]} Rc8 {[%clk 00:14:16]} {[%emt 00:00:23]} 12. Nc3
{[%clk 00:12:35]} {[%emt 00:00:34]} Na5 {[%clk 00:13:47]} {[%emt 00:00:34]} 13.
Nd2 {[%clk 00:10:32]} {[%emt 00:02:07]} Nxc3 {[%clk 00:13:06]} {[%emt
00:00:46]} 14. bxc3 {[%clk 00:10:31]} {[%emt 00:00:07]} Qc7 {[%clk 00:13:03]}
{[%emt 00:00:07]} 15. Bb2 {[%clk 00:10:09]} {[%emt 00:00:28]} Ba6 {[%clk
00:12:33]} {[%emt 00:00:34]} 16. Rfe1 {[%clk 00:09:35]} {[%emt 00:00:40]} Be7
{[%clk 00:12:36]} 17. f4 {[%clk 00:08:54]} {[%emt 00:00:46]} g6 {[%clk
00:12:39]} {[%emt 00:00:02]} 18. g4 {[%clk 00:07:50]} {[%emt 00:01:10]} h5
{[%clk 00:12:27]} {[%emt 00:00:16]} 19. f5 {[%clk 00:07:23]} {[%emt 00:00:33]}
gxf5 {[%clk 00:11:51]} {[%emt 00:00:41]} 20. gxf5 {[%clk 00:07:22]} {[%emt
00:00:05]} Kd7 {[%clk 00:11:33]} {[%emt 00:00:23]} 21. Bh3 {[%clk 00:06:02]}
{[%emt 00:01:25]} Rcg8+ {[%clk 00:10:59]} {[%emt 00:00:39]} 22. Kh1 {[%clk
00:05:44]} {[%emt 00:00:24]} Qc6 {[%clk 00:09:15]} {[%emt 00:01:48]} 23. Rg1
{[%clk 00:04:35]} {[%emt 00:01:14]} Rxg1+ {[%clk 00:03:51]} {[%emt 00:05:29]}
24. Rxg1 {[%clk 00:04:30]} {[%emt 00:00:11]} Kd8 {[%clk 00:03:45]} {[%emt
00:00:10]} 25. Rg7 {[%clk 00:03:16]} {[%emt 00:01:19]} f6 {[%clk 00:02:40]}
{[%emt 00:01:10]} 26. fxe6 {[%clk 00:02:25]} {[%emt 00:00:57]} fxe5 {[%clk
00:01:49]} {[%emt 00:00:55]} 27. Qg6 {[%clk 00:02:01]} {[%emt 00:00:30]} Re8
{[%clk 00:01:44]} {[%emt 00:00:08]} 28. Nf3 {[%clk 00:00:23]} {[%emt 00:01:44]}
Nc4 {[%clk 00:01:48]} {[%emt 00:00:02]} 29. Nxe5 {[%emt 00:00:12]} Nxe5 {[%clk
00:01:50]} 30. dxe5 {[%clk 00:00:20]} {[%emt 00:00:02]} Qb5 {[%clk 00:00:47]}
{[%emt 00:01:08]} 31. Rg8 {[%clk 00:00:13]} {[%emt 00:00:13]} Rxg8 {[%clk
00:00:28]} {[%emt 00:00:23]} 32. Qxg8+ {[%clk 00:00:17]} Qe8 {[%clk 00:00:32]}
{[%emt 00:00:01]} 33. Qxe8+ {[%clk 00:00:14]} {[%emt 00:00:08]} Kxe8 {[%clk
00:00:36]} {[%emt 00:00:01]} 34. Kg2 {[%clk 00:00:16]} {[%emt 00:00:03]} Kf8
{[%clk 00:00:39]} {[%emt 00:00:02]} 35. Kf3 {[%clk 00:00:17]} {[%emt 00:00:04]}
Kg7 {[%clk 00:00:39]} {[%emt 00:00:05]} 36. Bc1 {[%clk 00:00:19]} {[%emt
00:00:04]} Kg6 {[%clk 00:00:41]} {[%emt 00:00:03]} 37. Ke3 {[%clk 00:00:11]}
{[%emt 00:00:12]} Bg5+ {[%clk 00:00:43]} {[%emt 00:00:04]} 38. Kd4 {[%clk
00:00:14]} {[%emt 00:00:02]} Bxc1 {[%clk 00:00:45]} {[%emt 00:00:03]} 39. Kxd5
{[%clk 00:00:15]} {[%emt 00:00:03]} Bxa3 {[%clk 00:00:47]} {[%emt 00:00:03]} 40.
Kc6 {[%clk 00:00:17]} {[%emt 00:00:04]} Be7 {[%clk 00:00:32]} {[%emt 00:00:19]}
41. Kd7 {[%clk 00:00:18]} {[%emt 00:00:05]} Bg5 {[%clk 00:00:34]} {[%emt
00:00:02]} 42. e7 {[%clk 00:00:11]} {[%emt 00:00:12]} Bb5+ {[%clk 00:00:38]}
{[%emt 00:00:01]} 43. Kd6 {[%clk 00:00:07]} {[%emt 00:00:09]} Kf7 {[%clk
00:00:31]} {[%emt 00:00:12]} 44. Be6+ {[%clk 00:00:09]} {[%emt 00:00:05]} Ke8
{[%clk 00:00:34]} {[%emt 00:00:02]} 45. Bf5 {[%clk 00:00:12]} {[%emt 00:00:01]}
Bxe7+ {[%clk 00:00:37]} {[%emt 00:00:01]} 46. Kc7 {[%clk 00:00:14]} {[%emt
00:00:03]} Bc4 {[%clk 00:00:33]} {[%emt 00:00:08]} 47. e6 {[%clk 00:00:16]}
{[%emt 00:00:04]} b5 {[%clk 00:00:30]} {[%emt 00:00:07]} 48. Bg6+ {[%clk
00:00:18]} {[%emt 00:00:03]} Kf8 {[%clk 00:00:34]} 49. Bxh5 {[%clk 00:00:20]}
{[%emt 00:00:03]} a5 {[%clk 00:00:39]} {[%emt 00:00:01]} 0-1